bitfinex-derivatives/quotes_SOLF0:USTF0_20250904
["timestamp","ask_amount","ask_price","bid_price","bid_amount"]
[1756977125812,7.97371486,208.05,208.01,7.23]
[1756977126212,7.97371486,208.05,208.0,0.03701303]
[1756977126614,0.03371486,208.05,208.01,7.23]
[1756977126815,0.03371486,208.05,208.02,7.23]
[1756977127015,0.03371486,208.05,208.0,0.03701303]
[1756977127317,7.94,208.04,208.01,7.23]
[1756977128113,7.94,208.03,208.0,0.03701303]
[1756977128509,1.95280669,208.04,208.0,0.03701303]
[1756977128708,7.94,208.03,208.0,0.03701303]
[1756977129313,1.95280669,208.04,208.0,0.03701303]
[1756977129517,7.94,208.03,208.0,0.03701303]
[1756977130019,1.95280669,208.04,208.0,0.03701303]
[1756977130422,7.94,208.03,208.0,7.26701303]
[1756977131220,1.95280669,208.04,208.0,7.26701303]
[1756977131419,1.95280669,208.02,208.0,0.03701303]
[1756977131720,7.94,208.01,208.0,0.03701303]
[1756977132523,1.95280669,208.02,208.0,0.03701303]
[1756977132722,7.49,208.04,208.01,7.93]
[1756977132723,7.49,208.03,208.01,7.93]
[1756977132922,7.49,208.03,208.0,7.96701303]
[1756977133225,7.49,208.03,208.01,7.93]
[1756977134126,7.52371486,208.05,208.01,7.93]
[1756977134329,0.03371486,208.05,208.01,7.93]
[1756977134533,7.49,208.04,208.01,7.93]
[1756977135331,0.03371486,208.05,208.0,1.98981972]
[1756977135731,0.03371486,208.05,208.01,7.93]
[1756977136331,0.03371486,208.05,208.0,1.98981972]
[1756977136634,0.03371486,208.05,208.01,7.93]
[1756977137134,0.03371486,208.05,208.0,1.98981972]
[1756977138829,0.03371486,208.05,208.01,7.93]
[1756977139035,0.03371486,208.05,208.0,1.98981972]
[1756977139230,7.52371486,208.05,208.01,7.93]
[1756977139435,1.98652155,208.05,208.0,0.03701303]
[1756977139634,7.49,208.04,208.01,7.93]
[1756977140036,1.98652155,208.05,208.01,7.93]
[1756977140436,9.47652155,208.05,208.0,0.03701303]
[1756977140636,9.47652155,208.05,208.01,7.93]
[1756977141535,7.49,208.04,208.01,7.93]
[1756977141839,7.49,208.04,208.0,0.03701303]
[1756977141840,1.98652155,208.05,208.0,0.03701303]
[1756977142034,1.98652155,208.05,208.0,7.96701303]
[1756977142231,7.49,208.04,208.0,7.96701303]
[1756977142636,7.49,208.04,208.0,0.03701303]
[1756977142835,1.98652155,208.05,208.0,0.03701303]
[1756977142836,1.95280669,208.03,208.0,0.03701303]
[1756977143743,7.49,208.02,208.0,0.03701303]
[1756977144039,1.95280669,208.03,208.0,0.03701303]
[1756977144244,7.49,208.02,208.0,0.03701303]
[1756977144645,1.95280669,208.03,208.0,0.03701303]
[1756977144940,7.49,208.03,208.0,7.96701303]
[1756977146043,7.49,208.03,208.01,7.93]
[1756977146741,7.49,208.03,208.0,0.03701303]
[1756977148340,9.47652155,208.05,208.01,7.93]
[1756977148740,9.47652155,208.05,208.0,0.03701303]
[1756977148939,9.47652155,208.05,208.01,7.93]
[1756977150148,1.98652155,208.05,208.01,7.93]
[1756977150441,7.49,208.04,208.01,7.93]
[1756977150646,1.98652155,208.05,208.01,7.93]
[1756977150945,7.49,208.04,208.01,7.93]
[1756977151247,1.98652155,208.05,208.01,7.93]
[1756977151443,7.49,208.04,208.01,7.93]
[1756977151644,7.49,208.04,208.0,0.03701303]
[1756977151838,1.95280669,208.03,208.0,0.03701303]
[1756977152036,7.49,208.02,208.0,0.03701303]
[1756977152241,1.95280669,208.03,208.0,0.03701303]
[1756977152945,7.49,208.02,208.0,0.03701303]
[1756977153141,1.95280669,208.03,208.0,0.03701303]
[1756977153342,7.49,208.02,208.0,0.03701303]
[1756977153740,1.95280669,208.03,208.0,0.03701303]
[1756977153938,7.49,208.02,208.0,0.03701303]
[1756977154344,1.95280669,208.03,208.0,0.03701303]
[1756977154546,7.49,208.02,208.0,0.03701303]
[1756977154844,1.95280669,208.03,208.0,0.03701303]
[1756977155045,7.49,208.02,208.0,0.03701303]
[1756977155245,1.95280669,208.03,208.0,0.03701303]
[1756977155449,7.49,208.02,208.0,0.03701303]
[1756977155746,1.95280669,208.03,208.0,0.03701303]
[1756977155941,7.49,208.02,208.0,0.03701303]
[1756977156247,1.95280669,208.03,208.0,0.03701303]
[1756977156949,7.49,208.02,208.0,0.03701303]
[1756977157145,1.95280669,208.03,208.0,0.03701303]
[1756977157547,7.49,208.02,208.0,0.03701303]
[1756977157741,1.95280669,208.03,208.0,0.03701303]
[1756977158350,7.49,208.02,208.0,0.03701303]
[1756977158747,1.95280669,208.03,208.0,0.03701303]
[1756977159349,7.49,208.02,208.0,0.03701303]
[1756977159741,1.95280669,208.03,208.0,0.03701303]
[1756977160150,7.49,208.02,208.0,0.03701303]
[1756977160650,1.95280669,208.03,208.0,0.03701303]
[1756977161047,7.49,208.02,208.0,0.03701303]
[1756977161249,1.95280669,208.03,208.0,0.03701303]
[1756977161450,7.49,208.02,208.0,0.03701303]
[1756977161949,1.95280669,208.03,208.0,0.03701303]
[1756977162150,7.3,208.02,208.0,0.03701303]
[1756977162540,1.95280669,208.03,208.0,0.03701303]
[1756977162745,7.3,208.02,208.0,0.03701303]
[1756977162946,1.95280669,208.03,208.0,0.03701303]
[1756977163652,7.3,208.02,208.0,0.03701303]
[1756977163951,1.95280669,208.03,208.0,0.03701303]
[1756977164348,7.3,208.02,208.0,0.03701303]
[1756977164549,1.95280669,208.03,208.0,0.03701303]
[1756977165352,7.3,208.02,208.0,0.03701303]
[1756977165555,0.03371486,208.05,208.0,0.03701303]
[1756977166051,7.3,208.04,208.0,0.03701303]
[1756977166952,12.66157356,208.04,208.0,0.03701303]
[1756977169357,7.3,208.04,208.0,7.54701303]
[1756977169958,5.39528842,208.05,208.0,7.54701303]
[1756977170455,7.3,208.04,208.0,7.54701303]
[1756977170956,7.3,208.04,208.0,0.03701303]
[1756977172157,12.66157356,208.04,208.0,0.03701303]
[1756977172750,7.3,208.03,208.0,0.03701303]
[1756977173357,7.3,208.04,208.0,0.03701303]
[1756977173550,12.66157356,208.04,208.0,0.03701303]
[1756977173750,7.3,208.03,208.0,0.03701303]
[1756977174155,7.3,208.04,208.0,0.03701303]
[1756977174351,8.44715763,208.05,208.0,0.03701303]
[1756977174755,7.3,208.04,208.0,0.03701303]
[1756977174951,8.44715763,208.05,208.0,0.03701303]
[1756977175156,7.3,208.04,208.0,0.03701303]
[1756977175658,8.44715763,208.05,208.0,0.03701303]
[1756977176158,7.3,208.04,208.0,0.03701303]
[1756977176359,8.44715763,208.05,208.0,0.03701303]
[1756977176961,8.44715763,208.05,208.0,7.54701303]
[1756977177361,7.3,208.04,208.0,7.54701303]
[1756977177862,3.08558407,208.05,208.0,7.54701303]
[1756977178562,0.03371486,208.05,208.0,0.03701303]
[1756977178764,0.03371486,208.05,208.01,7.51]
[1756977179058,0.03371486,208.05,208.0,0.03701303]
[1756977179561,0.03371486,208.05,208.01,7.51]
[1756977179762,0.03371486,208.05,208.0,0.03701303]
[1756977179960,0.03371486,208.05,208.01,7.51]
[1756977180161,0.03371486,208.05,208.0,0.03701303]
[1756977180460,0.03371486,208.05,208.01,7.51]
[1756977184557,0.03371486,208.05,208.03,3.05186921]
[1756977184864,0.03371486,208.05,208.04,7.51]
[1756977205680,0.03371486,208.05,208.01,7.82]
[1756977205983,0.03371486,208.05,208.0,3.08888224]
[1756977206877,0.03371486,208.05,208.01,7.82]
[1756977207178,0.03371486,208.05,208.0,3.08888224]
[1756977207582,0.03371486,208.05,208.01,7.82]
[1756977208083,0.03371486,208.05,208.0,3.08888224]
[1756977208277,0.03371486,208.05,208.01,7.82]
[1756977208484,0.03371486,208.05,208.0,3.08888224]
[1756977208783,0.03371486,208.05,208.01,7.82]
[1756977209184,0.03371486,208.05,208.0,3.08888224]
[1756977209778,0.03371486,208.05,208.0,0.03701303]
[1756977209978,0.03371486,208.05,208.0,3.08888224]
[1756977210884,0.03371486,208.05,208.01,7.82]
[1756977211084,0.03371486,208.05,208.0,3.08888224]
[1756977211281,0.03371486,208.05,208.01,7.82]
[1756977211486,0.03371486,208.05,208.0,3.08888224]
[1756977212184,0.03371486,208.05,208.01,7.82]
[1756977212387,7.98,208.04,208.01,7.82]
[1756977212983,7.98,208.04,208.0,0.03701303]
[1756977213181,0.03371486,208.05,208.0,0.03701303]
[1756977213582,7.98,208.04,208.0,0.03701303]
[1756977213788,0.03371486,208.05,208.0,0.03701303]
[1756977214288,7.98,208.04,208.0,0.03701303]
[1756977214787,0.03371486,208.05,208.0,0.03701303]
[1756977215192,7.98,208.04,208.0,7.85701303]
[1756977215390,0.03371486,208.05,208.0,7.85701303]
[1756977216488,7.98,208.04,208.0,7.85701303]
[1756977216990,0.03371486,208.05,208.0,7.85701303]
[1756977217288,7.98,208.04,208.0,7.85701303]
[1756977217483,0.03371486,208.05,208.0,7.85701303]
[1756977218183,7.98,208.04,208.0,7.85701303]
[1756977218389,0.03371486,208.05,208.0,7.85701303]
[1756977218589,7.98,208.04,208.0,7.85701303]
[1756977218786,0.03371486,208.05,208.0,7.85701303]
[1756977220189,11.03186921,208.04,208.0,0.03701303]
[1756977220396,7.98,208.04,208.0,0.03701303]
[1756977220589,3.05186921,208.02,208.0,0.03701303]
[1756977220788,7.98,208.01,208.0,0.03701303]
[1756977221693,8.46,208.01,208.0,0.03701303]
[1756977227493,10.41424074,208.01,208.0,0.03701303]
[1756977234001,8.46,208.01,208.0,0.03701303]
[1756977234199,9.93424074,208.01,208.0,0.03701303]
[1756977235302,1.95424074,208.01,208.0,7.33701303]
[1756977235895,1.95424074,208.03,208.0,7.33701303]
[1756977236195,7.65,208.02,208.0,7.33701303]
[1756977236596,1.95424074,208.03,208.0,7.33701303]
[1756977236901,7.68371486,208.05,208.01,7.3]
[1756977237091,1.95424074,208.04,208.01,7.3]
[1756977237494,9.60424074,208.04,208.01,7.3]
[1756977238500,7.65,208.03,208.01,7.3]
[1756977240791,7.65,208.03,208.0,0.03701303]
[1756977240792,7.65,208.03,208.0,7.33701303]
[1756977242800,1.95424074,208.02,208.0,0.03701303]
[1756977243004,7.65,208.01,208.0,0.03701303]
[1756977243899,8.13,208.01,207.95,9.00442]
[1756977244099,9.60424074,207.96,207.95,9.00442]
[1756977260818,7.65,207.96,207.95,9.00442]
[1756977261019,9.60424074,207.96,207.95,9.00442]
[1756977265022,14.9658143,207.96,207.95,9.00442]
[1756977265521,9.60424074,207.96,207.95,9.00442]
[1756977286442,14.9658143,207.96,207.95,9.00442]
[1756977289542,13.01157356,207.96,207.95,9.00442]
[1756977290045,7.65,207.96,207.95,9.00442]
[1756977290447,15.69236034,207.96,207.95,9.00442]
[1756977291344,7.65,207.96,207.95,9.00442]
[1756977294145,11.0969209,207.97,207.95,9.00442]
[1756977294349,8.07676444,207.98,207.95,9.00442]
[1756977294553,5.40068695,207.96,207.95,9.00442]
[1756977294750,5.40068695,207.96,207.95,16.61442]
[1756977296354,5.43509105,207.98,207.96,7.61]
[1756977296853,0.0344041,207.98,207.96,7.61]
[1756977297356,0.0344041,207.98,207.96,8.09]
[1756977297550,0.0344041,207.98,207.96,7.61]
[1756977297752,83.74712419,208.02,207.98,7.61]
[1756977298056,89.14781114,208.02,207.98,7.61]
[1756977298556,83.74712419,208.02,207.98,7.61]
[1756977299053,83.78184081,208.02,207.98,7.61]
[1756977300361,0.03471662,208.02,207.98,7.61]
[1756977302757,0.03471662,208.02,207.98,8.09]
[1756977303950,0.03471662,208.02,207.99,3.05456056]
[1756977304260,0.03471662,208.02,208.0,7.61]
[1756977304758,0.03471662,208.02,208.0,8.09]
[1756977304959,82.63045453,208.12,208.01,0.48]
[1756977305256,82.63045453,208.12,208.03,7.61]
[1756977305860,7.7,208.11,208.03,7.61]
[1756977306160,7.7,208.11,208.05,0.03262333]
[1756977306457,7.7,208.11,208.06,7.61]
[1756977306652,7.7,208.11,208.05,0.03262333]
[1756977306858,7.7,208.11,208.05,7.64262333]
[1756977319668,10.75456056,208.11,208.05,0.03262333]
[1756977320066,3.05456056,208.08,208.05,0.03262333]
[1756977320266,7.28,208.07,208.05,0.03262333]
[1756977320970,3.05456056,208.08,208.05,0.03262333]
[1756977321873,7.28,208.07,208.05,0.03262333]
[1756977322065,3.05456056,208.08,208.05,0.03262333]
[1756977322465,7.28,208.07,208.05,0.03262333]
[1756977322969,3.05456056,208.08,208.05,0.03262333]
[1756977323165,7.28,208.07,208.05,0.03262333]
[1756977327765,7.28,208.07,207.99,7.86]
[1756977327971,3.05456056,208.04,207.99,7.86]
[1756977328368,7.28,208.03,207.96,7.86]
[1756977329074,0.03173693,208.02,207.96,7.86]
[1756977330873,7.28,208.01,207.96,7.86]
[1756977331366,3.05456056,208.01,207.96,7.86]
[1756977331566,7.28,208.0,207.96,7.86]
[1756977332061,3.05456056,208.01,207.96,7.86]
[1756977332969,7.28,208.0,207.96,7.86]
[1756977333267,0.03173693,208.02,207.95,9.00442]
[1756977333567,10.33456056,208.01,207.95,16.86442]
[1756977333873,3.05456056,208.01,207.95,16.86442]
[1756977334076,7.28,208.0,207.95,9.00442]
[1756977334473,3.05456056,208.01,207.95,9.00442]
[1756977335069,7.28,208.0,207.95,9.00442]
[1756977335476,3.05456056,208.01,207.95,9.00442]
[1756977335666,7.28,208.0,207.95,9.00442]
[1756977336169,3.05456056,207.98,207.95,9.00442]
[1756977336374,7.28,207.97,207.95,9.00442]
[1756977336970,3.05456056,207.99,207.95,9.00442]
[1756977337168,7.28,207.98,207.95,9.00442]
[1756977337365,3.05456056,207.99,207.95,9.00442]
[1756977338271,10.33456056,207.96,207.95,9.00442]
[1756977339067,10.81456056,207.96,207.9,7.86]
[1756977339268,10.33456056,207.96,207.9,7.86]
[1756977339575,10.33456056,207.96,207.83,7.86]
[1756977340275,0.03682787,207.92,207.83,7.86]
[1756977343183,7.52682787,207.92,207.83,7.86]
[1756977343978,0.03682787,207.92,207.83,7.86]
[1756977344283,0.03682787,207.92,207.84,7.2]
[1756977346082,0.03682787,207.92,207.87,7.2]
[1756977346481,10.54456056,207.99,207.87,7.2]
[1756977346782,0.03696216,207.92,207.87,7.2]
[1756977351491,0.03696216,207.92,207.88,1.95472488]
[1756977351886,0.03696216,207.92,207.89,7.2]
[1756977355995,0.03696216,207.92,207.91,7.2]
[1756977357098,1.95472488,208.02,207.91,7.68]
[1756977357399,1.95472488,208.02,207.8,14.43]
[1756977357400,1.95472488,208.02,207.95,7.2]
[1756977358096,1.95472488,208.02,207.96,1.95472488]
[1756977358292,1.95472488,208.02,207.97,7.2]
[1756977359489,1.95472488,208.02,207.96,1.99088822]
[1756977359693,1.95472488,208.02,207.97,7.2]
[1756977359894,1.95472488,208.02,207.96,1.99088822]
[1756977360497,1.95472488,208.02,207.97,7.2]
[1756977360895,9.44472488,208.04,207.97,7.2]
[1756977361099,1.95472488,208.04,207.99,7.2]
[1756977361396,7.49,208.07,208.01,7.2]
[1756977361996,1.95472488,208.08,208.02,0.03651161]
[1756977362197,9.44472488,208.08,208.02,0.03651161]
[1756977362394,9.44472488,208.08,208.03,7.2]
[1756977362697,9.44472488,208.08,208.02,0.03651161]
[1756977362902,1.95472488,208.06,208.02,0.03651161]
[1756977363199,7.49,208.03,208.02,0.03651161]
[1756977366504,7.97,208.03,207.91,7.2]
[1756977366702,1.95472488,207.98,207.91,7.2]
[1756977366907,1.95472488,207.98,207.92,1.95472488]
[1756977367206,9.44472488,208.0,207.93,7.2]
[1756977367409,1.95472488,208.0,207.94,1.95472488]
[1756977367702,1.95472488,208.02,207.97,7.2]
[1756977367906,0.03700499,207.99,207.97,7.2]
[1756977368205,0.03700499,207.99,207.96,1.95472488]
[1756977368802,0.03700499,207.99,207.97,7.2]
[1756977369002,0.03700499,207.99,207.96,1.95472488]
[1756977369202,0.03700499,207.99,207.97,7.2]
[1756977369406,0.03700499,207.99,207.96,1.95472488]
[1756977369602,0.03700499,207.99,207.98,9.15472488]
[1756977369902,7.49,208.07,207.99,7.2]
[1756977370204,7.49,208.07,208.0,1.95472488]
[1756977370396,5.40068695,208.11,208.0,1.95472488]
[1756977370397,1.95472488,208.06,208.0,1.95472488]
[1756977370599,1.95472488,208.06,208.0,9.15472488]
[1756977370902,1.95472488,208.06,208.0,7.2]
[1756977371102,1.95472488,208.06,208.01,0.03570363]
[1756977371604,7.49,208.05,208.01,7.23570363]
[1756977371904,1.95472488,208.06,208.01,7.23570363]
[1756977372303,7.83,208.05,208.01,7.23570363]
[1756977372901,7.83,208.05,208.02,7.24]
[1756977373102,1.95472488,208.06,208.02,7.24]
[1756977373307,9.78472488,208.08,208.02,7.24]
[1756977378410,9.78472488,208.08,208.01,1.99042851]
[1756977378610,1.95472488,208.04,208.01,0.03570363]
[1756977378814,1.95472488,208.02,208.01,0.03570363]
[1756977379008,9.78472488,208.02,208.01,0.03570363]
[1756977385717,10.26472488,208.02,207.92,7.24]
[1756977385912,7.83,207.95,207.92,7.24]
[1756977391019,7.83,207.95,207.88,7.24]
[1756977391218,1.95472488,207.94,207.88,7.24]
[1756977391420,7.83,207.95,207.88,7.24]
[1756977391623,1.95472488,207.94,207.88,7.24]
[1756977393222,7.83,207.95,207.88,7.24]
[1756977393421,1.95472488,207.94,207.88,7.24]
[1756977399924,1.99160161,207.96,207.89,7.24]
[1756977406132,9.55160161,207.96,207.89,7.24]
[1756977410236,7.59687673,207.96,207.89,7.24]
[1756977410436,7.59687673,207.96,207.87,1.95472488]
[1756977410437,9.51472488,207.94,207.88,7.53]
[1756977412142,0.03687673,207.96,207.88,7.53]
[1756977412344,9.55160161,207.96,207.88,1.95472488]
[1756977412640,1.95472488,207.94,207.89,7.53]
[1756977413233,7.56,207.93,207.86,1.95472488]
[1756977413440,7.56,207.93,207.87,7.53]
[1756977413942,0.03466798,207.92,207.86,7.53]
[1756977418741,7.59466798,207.92,207.86,7.53]
[1756977435544,0.03466798,207.92,207.86,7.53]
[1756977436941,0.03466798,207.92,207.85,123.78453759]
[1756977436942,0.03466798,207.92,207.87,3.05473775]
[1756977437142,0.03466798,207.92,207.88,7.66]
[1756977438251,0.03466798,207.92,207.88,10.71473775]
[1756977438453,0.03466798,207.92,207.89,7.66]
[1756977440952,5.40068695,208.0,207.91,3.05473775]
[1756977441156,7.43,208.02,207.92,7.66]
[1756977441763,7.43,208.02,207.94,3.05473775]
[1756977442066,7.43,208.02,207.95,7.66]
[1756977442268,7.43,208.02,207.94,3.05473775]
[1756977442269,7.43,208.02,207.96,0.03302163]
[1756977442957,7.43,208.02,207.97,7.66]
[1756977443368,7.43,208.02,207.96,0.03302163]
[1756977443668,7.43,208.02,207.97,7.66]
[1756977443859,7.43,208.02,207.96,0.03302163]
[1756977444058,7.43,208.02,207.97,7.66]
[1756977444567,7.43,208.02,207.96,7.69302163]
[1756977448370,7.43,208.02,207.96,0.03302163]
[1756977450571,3.05473775,208.0,207.96,0.03302163]
[1756977450760,7.43,207.99,207.96,0.03302163]
[1756977452066,3.05473775,208.01,207.96,0.03302163]
[1756977452267,7.43,208.0,207.96,0.03302163]
[1756977455475,3.05473775,208.02,207.96,7.69302163]
[1756977455673,3.05473775,208.03,207.96,0.03302163]
[1756977455864,7.43,208.02,207.96,0.03302163]
[1756977461974,7.43,208.02,207.96,7.69302163]
[1756977463488,7.43,208.02,207.96,0.03302163]
[1756977463778,7.68,207.99,207.96,0.03302163]
[1756977464280,3.05473775,208.0,207.96,0.03302163]
[1756977464473,7.68,207.99,207.96,0.03302163]
[1756977464671,3.05473775,208.0,207.96,0.03302163]
[1756977464879,7.68,207.99,207.96,0.03302163]
[1756977465581,10.73473775,207.97,207.96,0.03302163]
[1756977465884,10.73473775,207.97,207.88,7.78]
[1756977466179,7.68,207.93,207.88,7.78]
[1756977466374,3.05473775,207.94,207.88,7.78]
[1756977466779,7.68,207.93,207.88,7.78]
[1756977467080,7.68,207.92,207.84,7.78]
[1756977467273,7.68,207.9,207.84,7.78]
[1756977467781,0.03302759,207.89,207.79,7.78]
[1756977468574,7.68,207.88,207.79,7.78]
[1756977470587,7.68,207.85,207.79,7.78]
[1756977471582,3.05473775,207.86,207.79,7.78]
[1756977471583,7.68,207.83,207.79,7.78]
[1756977472081,0.03559904,207.84,207.79,7.78]
[1756977472478,7.68,207.83,207.79,7.78]
[1756977472783,0.03559904,207.84,207.79,7.78]
[1756977473677,7.68,207.83,207.79,7.78]
[1756977473883,0.03559904,207.84,207.79,7.78]
[1756977474282,7.68,207.83,207.79,7.78]
[1756977474681,0.03559904,207.84,207.79,7.78]
[1756977474880,7.68,207.83,207.79,7.78]
[1756977475081,0.03559904,207.84,207.79,7.78]
[1756977475277,7.68,207.83,207.79,7.78]
[1756977475479,1.95722362,207.82,207.74,1.95722362]
[1756977475684,1.95722362,207.82,207.75,7.78]
[1756977476083,0.03496528,207.81,207.75,7.78]
[1756977480592,0.03496528,207.81,207.68,8.36817236]
[1756977480593,1.95722362,207.8,207.69,7.78]
[1756977480785,1.95722362,207.8,207.68,4.03587236]
[1756977480786,1.95722362,207.8,207.73,7.78]
[1756977481187,0.03585557,207.79,207.73,7.78]
[1756977481387,0.03585557,207.79,207.73,9.73722362]
[1756977481583,0.03585557,207.79,207.74,7.78]
[1756977481993,0.03585557,207.79,207.73,1.95722362]
[1756977482286,0.03585557,207.79,207.74,7.78]
[1756977482594,0.03585557,207.79,207.73,7.78]
[1756977482992,0.03585557,207.79,207.74,1.95722362]
[1756977483193,0.03585557,207.79,207.75,7.78]
[1756977484792,0.03585557,207.79,207.76,1.95722362]
[1756977484997,0.03585557,207.79,207.77,7.78]
[1756977485295,0.03585557,207.79,207.76,1.95722362]
[1756977485490,0.03585557,207.79,207.73,1.95722362]
[1756977485686,0.03585557,207.79,207.74,7.78]
[1756977487996,0.03585557,207.79,207.76,7.78]
[1756977488690,0.03585557,207.79,207.77,1.95722362]
[1756977488896,0.03585557,207.79,207.78,7.78]
[1756977490895,0.03585557,207.79,207.78,9.73722362]
[1756977493101,9.71722362,207.89,207.79,7.46]
[1756977493399,9.71722362,207.89,207.85,7.46]
[1756977493400,7.76,207.89,207.85,7.46]
[1756977494402,7.76,207.89,207.85,7.49611773]
[1756977494797,1.95722362,207.9,207.85,7.49611773]
[1756977495199,7.76,207.89,207.85,7.49611773]
[1756977495503,1.95722362,207.9,207.85,7.49611773]
[1756977495803,7.76,207.89,207.85,7.49611773]
[1756977496001,1.95722362,207.9,207.85,7.49611773]
[1756977496202,7.76,207.89,207.85,7.49611773]
[1756977496594,1.95722362,207.9,207.85,7.49611773]
[1756977496798,7.76,207.89,207.85,7.49611773]
[1756977497200,1.95722362,207.9,207.85,7.49611773]
[1756977497696,1.95722362,207.9,207.85,0.03611773]
[1756977497893,1.95722362,207.88,207.85,0.03611773]
[1756977498303,7.76,207.87,207.81,7.46]
[1756977498499,7.76,207.87,207.84,0.03036033]
[1756977498908,1.95722362,207.88,207.84,0.03036033]
[1756977499296,7.76,207.85,207.84,0.03036033]
[1756977499707,7.76,207.85,207.81,7.46]
[1756977499907,7.76,207.85,207.82,0.03494553]
[1756977500410,1.95722362,207.86,207.82,0.03494553]
[1756977500599,7.76,207.85,207.82,0.03494553]
[1756977501106,1.95722362,207.86,207.82,0.03494553]
[1756977501607,7.76,207.85,207.82,0.03494553]
[1756977503008,1.95722362,207.86,207.82,0.03494553]
[1756977503209,7.76,207.83,207.82,0.03494553]
[1756977507911,8.24,207.83,207.82,0.03494553]
[1756977515612,9.71722362,207.83,207.82,0.03494553]
[1756977515915,1.95722362,207.84,207.83,7.46]
[1756977516113,9.71722362,207.85,207.82,7.49494553]
[1756977516814,5.40068695,207.88,207.83,7.46]
[1756977517014,1.95722362,207.87,207.83,7.46]
[1756977517217,9.71722362,207.87,207.83,7.46]
[1756977517417,7.76,207.86,207.83,7.4933883]
[1756977518414,7.76,207.84,207.83,0.0333883]
[1756977520719,13.64068695,207.84,207.76,7.46]
[1756977520924,9.71722362,207.78,207.76,7.46]
[1756977523529,1.95722362,207.78,207.76,7.46]
[1756977526628,1.95722362,207.78,207.68,124.85575947]
[1756977526825,1.95722362,207.76,207.71,7.49]
[1756977527026,1.95722362,207.76,207.7,1.95722362]
[1756977527429,1.95722362,207.76,207.71,7.49]
[1756977527629,1.95722362,207.76,207.7,9.44722362]
[1756977528030,1.95722362,207.76,207.7,1.95722362]
[1756977528229,1.95722362,207.76,207.71,7.49]
[1756977528433,0.0309053,207.79,207.71,7.49]
[1756977528434,1.95722362,207.78,207.71,7.49]
[1756977528836,1.95722362,207.76,207.69,1.95722362]
[1756977529030,1.95722362,207.76,207.7,7.49]
[1756977529931,0.0321318,207.75,207.7,7.49]
[1756977530736,0.0321318,207.75,207.7,7.52694266]
[1756977532434,0.0321318,207.75,207.7,9.48416628]
[1756977533235,0.0321318,207.75,207.7,1.99416628]
[1756977533430,0.0321318,207.75,207.71,7.49]
[1756977535436,0.0321318,207.75,207.7,0.03694266]
[1756977535936,0.0321318,207.75,207.71,7.49]
[1756977536235,0.0321318,207.75,207.7,0.03694266]
[1756977536933,0.0321318,207.75,207.71,7.49]
[1756977538436,0.0321318,207.75,207.74,7.49]
[1756977538631,7.53,207.84,207.74,7.49]
[1756977539835,7.53,207.84,207.78,7.49]
[1756977540034,7.53,207.84,207.77,0.0309368]
[1756977540939,7.53,207.84,207.77,7.5209368]
[1756977545841,3.05946991,207.83,207.77,0.0309368]
[1756977546047,7.53,207.82,207.77,0.0309368]
[1756977546342,8.46015686,207.83,207.77,0.0309368]
[1756977546737,7.53,207.82,207.77,0.0309368]
[1756977546944,8.46015686,207.83,207.77,0.0309368]
[1756977547241,12.93068695,207.82,207.77,0.0309368]
[1756977547738,7.53,207.79,207.77,0.0309368]
[1756977548338,3.05946991,207.8,207.77,0.0309368]
[1756977548544,7.53,207.79,207.77,0.0309368]
[1756977549044,3.05946991,207.8,207.77,0.0309368]
[1756977549545,7.53,207.79,207.77,0.0309368]
[1756977549845,7.53,207.8,207.77,0.0309368]
[1756977550043,7.53,207.8,207.77,7.5209368]
[1756977550943,5.40068695,207.83,207.78,7.49]
[1756977551142,7.53,207.82,207.78,7.49]
[1756977551445,7.53,207.82,207.77,0.0309368]
[1756977551646,7.53,207.82,207.78,7.49]
[1756977552047,7.34,207.83,207.78,7.49]
[1756977552545,7.34,207.82,207.78,7.49]
[1756977553041,5.40068695,207.83,207.78,7.49]